{"text_format":"3","workbook":"xlsx","n_sheets":1,"sheets":["Faktura"],"not_rendered":{"defined_names":6},"read":"whole","date_system":"1900"}

{"sheet":"Faktura","index":0,"n_rows":26,"n_cols":7,"rows_kept":26,"merged":[[0,1,0,2],[1,1,1,2],[1,3,1,4],[1,5,1,6],[2,1,2,2],[2,3,2,4],[2,5,2,6],[3,1,3,2],[3,3,3,4],[4,1,4,2],[4,3,4,4],[5,3,5,4],[24,1,24,4],[25,1,25,4]]}
[null,"Firmanavn"]
[null,"Gateadresse",null,"T: Telefonnummer",null,"E-post"]
[null,"Poststed og postnummer",null,"F: Faksnummer",null,"Nettsted"]
[null,"Fakturer til:",null,{"$f":"\"Telefon:   \"","v":"Telefon:   "},null,"Fakturanummer:"]
[null,"Adresse:",null,{"$f":"\"Telefaks:    \"","v":"Telefaks:    "},null,"Fakturadato:"]
[{"$nulls":3},{"$f":"\"E-post:   \"","v":"E-post:   "}]
[null,{"$f":"\"Faktura for: \"","v":"Faktura for: "}]
[null,"Varenummer","Beskrivelse","Mengde","Enhetspris","Rabatt","Pris"]
[{"$nulls":6},{"$f":"IFERROR((D9*E9)-F9,\"\")","v":0}]
[{"$nulls":6},0]
[{"$nulls":6},0]
[{"$nulls":6},0]
[{"$nulls":6},0]
[{"$nulls":6},0]
[{"$nulls":6},0]
[{"$nulls":6},0]
[{"$nulls":6},0]
[{"$nulls":6},0]
[{"$nulls":6},0]
[{"$nulls":6},0]
[{"$nulls":5},"Delsum faktura",{"$f":"SUM(SimpleInvoice[Pris])","v":0}]
[{"$nulls":5},"Avgiftssats"]
[{"$nulls":5},"Merverdiavgift",{"$f":"IFERROR(G21*G22,\"\")","v":0}]
[{"$nulls":5},"Annet"]
[null,{"$f":"\"Alle sjekker utstedes til \"&company_name&\".\"","v":"Alle sjekker utstedes til Firmanavn."},{"$nulls":3},"Mottatt forskudd"]
[null,"Betales innen <#> dager. Forfalte fakturaer ilegges et gebyr på <#> % per måned.",{"$nulls":3},"TOTALT",{"$f":"IFERROR((G21+G23+G24)-G25,\"\")","v":0}]